bitfinex-derivatives/quotes_SOLF0:USTF0_20250929
["timestamp","ask_amount","ask_price","bid_price","bid_amount"]
[1759161697265,7.37,210.53,210.4,11.7147]
[1759161698565,4.2729,210.49,210.4,11.7147]
[1759161698761,4.2729,210.49,210.4,7.44]
[1759161700166,4.2729,210.49,210.4,21.47486577]
[1759161700370,7.37,210.47,210.4,7.44]
[1759161700664,7.37,210.47,210.37,11.7153]
[1759161701172,7.37,210.47,210.37,7.44]
[1759161702465,4.2729,210.5,210.39,3.4739752]
[1759161702663,11.6429,210.5,210.4,7.44]
[1759161703163,7.37,210.5,210.4,7.44]
[1759161703363,7.37,210.5,210.4,17.9063364]
[1759161703569,7.37,210.5,210.41,7.44]
[1759161703771,4.2724,210.52,210.44,7.44]
[1759161704067,7.51022146,210.52,210.44,7.44]
[1759161704671,3.23782146,210.52,210.44,7.44]
[1759161705065,3.23782146,210.52,210.44,11.7138]
[1759161705266,3.23543035,210.52,210.44,7.44]
[1759161705466,7.37,210.53,210.44,7.44]
[1759161705662,7.37,210.53,210.44,10.9139752]
[1759161706371,7.37,210.53,210.46,2.22360444]
[1759161707574,2.22360444,210.56,210.47,7.44]
[1759161707780,2.22360444,210.56,210.49,2.22360444]
[1759161707781,3.23313264,210.56,210.49,2.22360444]
[1759161708070,7.37,210.6,210.52,7.44]
[1759161708275,3.23325208,210.59,210.53,2.22360444]
[1759161709264,7.37,210.67,210.55,2.22360444]
[1759161709468,7.37,210.65,210.57,2.22360444]
[1759161709666,7.37,210.63,210.57,2.22360444]
[1759161710380,7.37,210.63,210.55,9.66360444]
[1759161710577,3.23186792,210.62,210.55,2.22360444]
[1759161710877,7.37,210.61,210.55,2.22360444]
[1759161711574,7.37,210.61,210.52,2.22360444]
[1759161711777,7.37,210.61,210.54,2.22360444]
[1759161711975,7.37,210.61,210.54,9.66360444]
[1759161712174,7.37,210.61,210.57,7.44]
[1759161712370,7.37,210.66,210.58,2.22360444]
[1759161712572,3.23311883,210.65,210.58,2.22360444]
[1759161712979,3.23311883,210.65,210.6,2.22360444]
[1759161713182,4.2692,210.68,210.6,9.66360444]
[1759161713381,7.50338148,210.68,210.6,9.66360444]
[1759161713883,3.23418148,210.68,210.6,9.66360444]
[1759161714080,3.23418148,210.69,210.6,9.66360444]
[1759161714274,7.95,210.68,210.6,9.66360444]
[1759161714480,7.50348148,210.67,210.6,7.44]
[1759161715077,3.23418148,210.67,210.6,7.44]
[1759161715282,10.17360444,210.66,210.56,2.22360444]
[1759161715482,3.23418148,210.65,210.56,2.22360444]
[1759161716370,7.50388148,210.65,210.56,2.22360444]
[1759161718783,7.95,210.63,210.55,8.07]
[1759161719174,2.22360444,210.62,210.55,8.07]
[1759161719682,7.95,210.59,210.51,10.29360444]
[1759161720182,7.95,210.61,210.52,6.49590444]
[1759161720576,7.95,210.61,210.54,2.22360444]
[1759161721973,7.95,210.68,210.57,8.07]
[1759161722188,2.22360444,210.66,210.57,8.07]
[1759161722381,7.95,210.64,210.49,8.07]
[1759161722586,2.22360444,210.6,210.51,10.29360444]
[1759161722786,2.22360444,210.6,210.51,8.07]
[1759161722787,7.95,210.59,210.51,8.07]
[1759161723183,4.2715,210.57,210.51,8.07]
[1759161723384,7.95,210.57,210.47,10.29360444]
[1759161724582,4.2717,210.56,210.47,10.29360444]
[1759161724783,7.95,210.57,210.47,10.29360444]
[1759161724986,7.95,210.57,210.47,8.07]
[1759161725288,7.95,210.55,210.47,8.07]
[1759161725490,2.22360444,210.54,210.47,8.07]
[1759161726588,4.2721,210.53,210.47,8.07]
[1759161727190,10.17360444,210.55,210.47,8.07]
[1759161727688,14.44550444,210.55,210.47,8.07]
[1759161727880,14.44550444,210.55,210.47,10.29360444]
[1759161728390,12.2219,210.55,210.47,10.29360444]
[1759161728984,7.95,210.54,210.45,2.22360444]
[1759161729585,4.2725,210.52,210.45,2.22360444]
[1759161729791,7.95,210.54,210.45,2.22360444]
[1759161730384,12.2227,210.51,210.43,10.29360444]
[1759161732089,12.2227,210.51,210.43,8.07]
[1759161732292,4.2729,210.5,210.43,10.29360444]
[1759161732493,7.95,210.51,210.43,10.29360444]
[1759161732494,10.17360444,210.51,210.43,8.07]
[1759161732881,4.2731,210.49,210.43,8.07]
[1759161733892,7.95,210.47,210.39,8.07]
[1759161734282,2.22360444,210.46,210.39,8.07]
[1759161734489,6.49720444,210.46,210.39,8.07]
[1759161736495,4.2736,210.46,210.39,8.07]
[1759161736695,7.95,210.47,210.4,2.22360444]
[1759161737196,91.92,210.5,210.42,10.21360444]
[1759161738190,4.2731,210.49,210.42,10.21360444]
[1759161738391,12.1131,210.49,210.42,10.21360444]
[1759161739792,7.84,210.47,210.38,14.04691202]
[1759161739997,7.84,210.47,210.38,2.22360444]
[1759161740498,7.84,210.47,210.4,2.22360444]
[1759161740697,4.2737,210.46,210.4,2.22360444]
[1759161742498,4.2739,210.45,210.38,2.22360444]
[1759161743793,7.84,210.44,210.37,7.99]
[1759161744195,12.1141,210.44,210.37,7.99]
[1759161744895,7.84,210.44,210.37,7.99]
[1759161745294,7.84,210.44,210.37,10.21360444]
[1759161747194,10.06360444,210.44,210.37,7.99]
[1759161747400,2.22360444,210.44,210.34,2.22360444]
[1759161747593,8.06,210.43,210.34,2.22360444]
[1759161747798,2.22360444,210.42,210.34,2.22360444]
[1759161748206,2.22360444,210.42,210.33,7.34]
[1759161748498,6.49800444,210.42,210.34,2.22360444]
[1759161749299,4.2744,210.42,210.34,2.22360444]
[1759161749806,8.06,210.38,210.3,14.02868944]
[1759161750107,8.06,210.38,210.29,328.70360444]
[1759161750108,8.06,210.38,210.32,9.56360444]
[1759161750801,8.06,210.38,210.32,7.34]
[1759161751001,8.06,210.38,210.32,9.56360444]
[1759161752199,8.06,210.38,210.32,13.83980444]
[1759161753406,8.06,210.43,210.36,2.22360444]
[1759161753599,8.06,210.47,210.42,2.22360444]
[1759161753800,8.06,210.47,210.43,7.34]
[1759161754106,8.06,210.51,210.44,2.22360444]
[1759161755101,8.06,210.51,210.4,4.2747]
[1759161755406,8.06,210.51,210.42,2.22360444]
[1759161755701,8.06,210.48,210.41,2.22360444]
[1759161756308,8.06,210.48,210.43,2.22360444]
[1759161756706,12.333,210.49,210.43,2.22360444]
[1759161757810,4.2733,210.48,210.43,2.22360444]
[1759161758605,8.06,210.47,210.43,2.22360444]
[1759161758910,12.3335,210.47,210.41,2.22360444]
[1759161759104,8.06,210.47,210.41,2.22360444]
[1759161759305,8.06,210.47,210.39,9.56360444]
[1759161759909,8.06,210.47,210.41,2.22360444]
[1759161760508,8.06,210.47,210.39,9.56360444]
[1759161761712,4.2737,210.46,210.39,9.56360444]
[1759161762613,8.06,210.47,210.39,9.56360444]
[1759161763715,12.3335,210.47,210.39,9.56360444]
[1759161763909,8.06,210.47,210.39,9.56360444]
[1759161764110,4.2737,210.46,210.39,9.56360444]
[1759161764908,2.22360444,210.46,210.36,6.49910444]
[1759161765111,8.06,210.45,210.36,6.49910444]
[1759161765610,8.06,210.45,210.37,7.34]
[1759161766615,4.2741,210.44,210.37,7.34]
[1759161768214,8.06,210.45,210.37,7.34]
[1759161768421,8.06,210.45,210.37,10.81754644]
[1759161769617,4.2739,210.45,210.38,10.81754644]
[1759161770023,4.2734,210.47,210.38,10.81754644]
[1759161770223,7.52585352,210.47,210.38,10.81754644]
[1759161770423,7.52585352,210.47,210.39,7.34]
[1759161770618,7.52585352,210.47,210.39,11.6148]
[1759161771122,4.273,210.49,210.42,7.34]
[1759161771732,7.5271069,210.49,210.42,7.34]
[1759161771932,4.273,210.49,210.44,3.47754644]
[1759161772128,4.273,210.49,210.45,7.34]
[1759161772322,12.333,210.49,210.45,7.34]
[1759161772523,3.25445046,210.48,210.45,7.34]
[1759161772731,3.25445046,210.52,210.45,7.34]
[1759161772924,3.25445046,210.51,210.45,7.34]
[1759161773240,112.12,210.53,210.45,7.34]
[1759161773241,11.31445046,210.5,210.45,7.34]
[1759161773523,3.25445046,210.49,210.45,7.34]
[1759161773721,3.25445046,210.48,210.45,7.34]
[1759161773926,8.06,210.47,210.4,7.34]
[1759161774227,8.06,210.47,210.41,3.47754644]
[1759161778135,3.25745786,210.46,210.41,3.47754644]
[1759161778527,8.06,210.47,210.41,11.42754644]
[1759161778728,3.25935752,210.46,210.41,3.47754644]
[1759161778923,8.06,210.47,210.41,3.47754644]
[1759161779134,8.06,210.47,210.42,7.95]
[1759161779329,3.26205119,210.46,210.42,7.95]
[1759161779729,3.26205119,210.46,210.41,3.47754644]
[1759161780126,4.2728,210.5,210.42,7.95]
[1759161780433,3.26324008,210.49,210.45,7.95]
[1759161780739,3.26324008,210.49,210.44,3.47754644]
[1759161780740,8.03,210.54,210.48,7.95]
[1759161780938,320.14272764,210.55,210.48,7.95]
[1759161780939,8.03,210.52,210.48,7.95]
[1759161781127,11.29493966,210.51,210.45,7.95]
[1759161781323,3.26493966,210.5,210.45,7.95]
[1759161781529,3.26493966,210.49,210.44,3.47754644]
[1759161781730,12.3026,210.51,210.45,7.95]
[1759161782043,3.26551934,210.5,210.44,15.70134644]
[1759161782337,3.26551934,210.49,210.45,7.95]
[1759161782539,3.26613184,210.5,210.45,7.95]
[1759161782732,3.26613184,210.49,210.45,7.95]
[1759161783235,8.03,210.47,210.4,7.95]
[1759161783434,8.03,210.53,210.42,3.47754644]
[1759161783640,3.26502526,210.52,210.45,3.47754644]
[1759161783939,3.26502526,210.51,210.45,11.42754644]
[1759161784140,3.26502526,210.5,210.46,7.95]
[1759161784438,3.26502526,210.52,210.48,3.47754644]
[1759161784638,8.03,210.53,210.49,7.95]
[1759161784840,3.26364937,210.52,210.49,7.95]
[1759161785034,8.03,210.53,210.49,7.95]
[1759161785235,3.26329054,210.52,210.46,15.70094644]
[1759161785435,3.26329054,210.53,210.46,15.70094644]
[1759161785643,3.26329054,210.52,210.46,15.70094644]
[1759161785836,4.2722,210.53,210.46,15.70094644]
[1759161786042,3.26134636,210.52,210.46,11.42754644]
[1759161786240,11.29134636,210.51,210.46,3.47754644]
[1759161786441,8.03,210.56,210.47,7.95]
[1759161786634,3.26000885,210.55,210.47,7.95]
[1759161786834,3.26000885,210.54,210.47,7.95]
[1759161787138,3.26000885,210.55,210.49,3.47754644]
[1759161787338,8.03,210.6,210.53,7.95]
[1759161787538,3.25854844,210.59,210.53,21.98187507]
[1759161787742,3.25854844,210.58,210.54,7.95]
[1759161787937,3.25854844,210.62,210.53,7.95]
[1759161788147,3.25854844,210.61,210.55,3.47754644]
[1759161788442,3.25854844,210.62,210.55,11.42754644]
[1759161788648,3.25854844,210.61,210.55,15.69914644]
[1759161788834,8.03,210.61,210.55,7.95]
[1759161789041,3.25854844,210.6,210.52,7.95]
[1759161789242,7.52934844,210.6,210.52,12.2222]
[1759161789938,4.2711,210.59,210.52,7.95]
[1759161790738,3.25854844,210.6,210.52,12.2222]
[1759161790935,3.25854844,210.6,210.52,7.95]
[1759161791136,11.50754644,210.57,210.48,7.95]
[1759161791346,8.03,210.55,210.48,7.95]
[1759161791638,4.2723,210.53,210.44,7.95]
[1759161791843,3.25425272,210.54,210.44,7.95]
[1759161792639,4.2724,210.52,210.44,7.95]
[1759161793142,7.52625272,210.54,210.44,7.95]
[1759161793543,3.25425272,210.54,210.44,7.95]
[1759161793745,4.2723,210.53,210.44,7.95]
[1759161794738,4.2723,210.53,210.44,26.32720714]
[1759161795541,12.3425,210.52,210.44,22.05340714]
[1759161795948,8.07,210.57,210.45,66.4803]
[1759161796145,3.24133812,210.56,210.49,3.47754644]
[1759161796448,117.44,210.6,210.5,7.83]
[1759161796648,3.24212075,210.59,210.5,7.83]
[1759161797045,3.24212075,210.59,210.52,3.47754644]
[1759161797751,3.24212075,210.59,210.53,7.83]
[1759161799652,117.44,210.6,210.53,12.102]
[1759161800555,121.7109,210.6,210.53,12.102]
[1759161802150,4.271,210.59,210.53,7.83]
[1759161803654,8.07,210.65,210.56,7.83]
[1759161803848,8.07,210.65,210.59,3.47754644]
[1759161804651,12.3398,210.65,210.59,3.47754644]
[1759161804852,12.3398,210.65,210.56,15.57894644]
[1759161805050,12.3398,210.65,210.56,12.1014]
[1759161805252,12.3398,210.65,210.56,15.57894644]
[1759161806747,12.3398,210.65,210.56,12.1014]
[1759161806954,4.2701,210.63,210.56,7.83]
[1759161807154,3.47754644,210.63,210.52,7.69]
[1759161807347,10.86754644,210.63,210.52,7.69]
[1759161808660,15.13764644,210.63,210.54,4.2718]
[1759161809857,7.39,210.63,210.52,66.4585]
[1759161810159,7.39,210.63,210.54,7.69]
[1759161811056,7.39,210.67,210.59,7.69]
[1759161812560,7.39,210.67,210.61,4.2703]
[1759161812961,7.39,210.67,210.59,7.69]
[1759161813459,7.39,210.67,210.63,7.69]
[1759161814761,7.39,210.68,210.62,4.2701]
[1759161814963,7.39,210.68,210.59,7.69]
[1759161817164,7.39,210.68,210.62,4.2702]
[1759161817766,7.39,210.68,210.61,7.69]
[1759161817767,7.39,210.73,210.66,4.2693]
[1759161819262,7.39,210.73,210.64,7.69]
[1759161819263,7.39,210.73,210.64,11.9598]
[1759161819569,7.39,210.76,210.64,11.9598]
[1759161819767,7.39,210.74,210.64,11.9598]
[1759161819968,3.23164041,210.73,210.65,4.2695]
[1759161820473,7.39,210.74,210.65,4.2695]
[1759161820671,11.658,210.74,210.67,4.2692]
[1759161821867,7.39,210.72,210.64,11.16754644]
[1759161822072,7.39,210.72,210.64,7.69]
[1759161822772,11.6584,210.72,210.64,7.69]
[1759161823872,7.39,210.72,210.64,7.69]
[1759161825067,4.2686,210.71,210.64,7.69]
[1759161825676,7.39,210.72,210.59,3.47754644]
[1759161825882,7.39,210.72,210.59,11.16754644]
[1759161825883,7.39,210.7,210.59,11.16754644]
[1759161826382,9.61047878,210.7,210.6,2.22047878]
[1759161826582,2.22047878,210.68,210.59,7.69]
[1759161826786,7.39,210.67,210.59,7.69]
[1759161827281,4.27,210.64,210.59,7.69]
[1759161827483,7.39,210.63,210.55,2.22047878]
[1759161828376,7.39,210.63,210.54,7.69]
[1759161828581,7.39,210.61,210.52,2.22047878]
[1759161828781,2.22047878,210.6,210.52,2.22047878]
[1759161829083,11.6605,210.61,210.52,2.22047878]
[1759161829281,7.39,210.61,210.52,2.22047878]
[1759161830576,4.2708,210.6,210.52,2.22047878]
[1759161831282,4.2708,210.6,210.53,2.22047878]
[1759161831487,90.7,210.63,210.51,4.2724]
[1759161831488,9.61047878,210.68,210.57,2.22047878]
[1759161831685,3.22445863,210.67,210.59,2.22047878]
[1759161831887,7.39,210.66,210.59,2.22047878]
[1759161832077,3.22445863,210.65,210.59,2.22047878]
[1759161832282,11.6595,210.66,210.59,2.22047878]
[1759161832679,7.39,210.66,210.59,2.22047878]
[1759161833192,3.22556462,210.65,210.57,2.22047878]
[1759161833487,9.61047878,210.66,210.57,2.22047878]
[1759161834595,4.27,210.64,210.57,2.22047878]
[1759161834790,2.22047878,210.7,210.61,2.22047878]
[1759161834996,2.22047878,210.7,210.61,10.01047878]
[1759161834997,10.19047878,210.7,210.61,10.01047878]
[1759161835196,3.22551389,210.69,210.61,10.01047878]
[1759161835391,7.49441389,210.69,210.61,10.01047878]
[1759161835697,3.22551389,210.69,210.63,2.22047878]
[1759161837703,7.97,210.7,210.63,2.22047878]
[1759161838202,51.64,210.73,210.64,7.79]
[1759161838396,3.22883993,210.72,210.64,7.79]
[1759161838602,7.97,210.71,210.64,7.79]
[1759161839400,12.2386,210.71,210.64,7.79]
[1759161841104,7.97,210.71,210.64,7.79]
[1759161841398,2.22047878,210.72,210.58,10.01047878]
[1759161841399,7.97,210.67,210.58,10.01047878]
[1759161842504,7.97,210.67,210.61,7.79]
[1759161842904,10.19047878,210.72,210.62,2.22047878]
[1759161843200,3.23053014,210.71,210.62,2.22047878]
[1759161843706,7.49913014,210.71,210.63,4.27]
[1759161844802,2.22047878,210.69,210.61,7.79]
[1759161845195,7.97,210.65,210.58,2.22047878]
[1759161845401,7.97,210.65,210.58,10.01047878]
[1759161845907,7.97,210.65,210.58,14.28147878]
[1759161846406,7.97,210.65,210.58,10.01047878]
[1759161847607,7.97,210.65,210.59,4.2707]
[1759161849813,7.97,210.65,210.6,4.2705]
[1759161850211,7.97,210.65,210.6,12.0605]
[1759161850509,7.97,210.65,210.6,7.79]
[1759161851010,66.3752,210.79,210.61,4.2703]
[1759161851202,2.22047878,210.71,210.6,2.22047878]
[1759161851403,3.23187704,210.7,210.6,2.22047878]
[1759161851599,7.50087704,210.69,210.62,4.2701]
[1759161852708,3.23187704,210.69,210.63,4.2699]
[1759161853507,7.97,210.67,210.63,4.2699]
[1759161857010,8.08,210.72,210.65,8.04]
[1759161857209,3.23104034,210.71,210.65,8.04]
[1759161857411,3.23104034,210.7,210.66,2.22047878]
[1759161857607,3.23104034,210.71,210.66,2.22047878]
[1759161857809,3.23104034,210.71,210.67,8.04]
[1759161858110,3.23104034,210.71,210.66,2.22047878]
[1759161858316,3.23104034,210.71,210.68,12.3089]
[1759161858512,11.31190228,210.73,210.68,12.3089]
[1759161858714,8.08,210.71,210.64,4.2698]
[1759161859014,8.08,210.71,210.64,6.49027878]
[1759161859412,12.3485,210.71,210.64,6.49027878]
[1759161859613,8.08,210.71,210.64,6.49027878]
[1759161860219,4.2688,210.7,210.64,6.49027878]
[1759161862119,7.49973917,210.7,210.64,6.49027878]
[1759161863219,7.49973917,210.7,210.64,20.43230649]
[1759161863718,3.23093917,210.7,210.64,20.43230649]
[1759161863923,3.23093917,210.7,210.66,8.04]
[1759161864118,10.65093917,210.71,210.66,8.04]
[1759161864422,7.42,210.71,210.67,7.31]
[1759161867426,7.42,210.71,210.67,11.5791]
[1759161868227,4.2682,210.73,210.67,4.2691]
[1759161868428,10.65015995,210.72,210.65,4.2696]
[1759161868624,7.42,210.72,210.64,23.47250649]
[1759161868923,11.6883,210.72,210.66,4.2694]
[1759161871516,7.49588238,210.71,210.66,7.31]
[1759161871721,177.7603,210.77,210.61,2.22047878]
[1759161871722,7.42,210.69,210.61,2.22047878]
[1759161872424,4.2692,210.68,210.62,4.2702]
[1759161872823,4.2694,210.67,210.6,11.5806]
[1759161873030,4.2694,210.67,210.61,2.22047878]
[1759161873222,11.6894,210.67,210.61,2.22047878]
[1759161876124,4.269,210.69,210.61,2.22047878]
[1759161876331,3.23094296,210.68,210.63,2.22047878]
[1759161876524,10.65094296,210.68,210.64,7.31]
[1759161876723,7.42,210.68,210.64,7.31]
[1759161877627,7.42,210.7,210.64,2.22047878]
[1759161877835,7.42,210.68,210.62,2.22047878]
[1759161878336,10.65289148,210.67,210.63,7.31]
[1759161878532,7.42,210.74,210.64,2.22047878]
[1759161878727,4.2686,210.71,210.66,2.22047878]
[1759161879036,3.23310713,210.7,210.67,7.31]
[1759161879228,3.23310713,210.69,210.67,7.31]
[1759161879427,11.6886,210.71,210.67,7.31]
[1759161879630,10.65411117,210.7,210.66,9.53047878]
[1759161879829,3.23411117,210.69,210.66,9.53047878]
[1759161880128,7.42,210.7,210.66,9.53047878]
[1759161880326,3.23437379,210.69,210.66,2.22047878]
[1759161880628,7.42,210.7,210.67,7.31]
[1759161880937,3.2341314,210.69,210.67,7.31]
[1759161881235,7.42,210.7,210.67,7.31]
[1759161881434,3.23421668,210.69,210.67,7.31]
[1759161881647,7.42,210.7,210.67,7.31]
[1759161882029,119.50047878,210.75,210.67,7.31]
[1759161882226,10.65443992,210.74,210.67,7.31]
[1759161882435,3.23443992,210.73,210.67,11.5792]
[1759161882732,3.23443992,210.72,210.68,7.31]
[1759161882929,117.28,210.75,210.68,9.53047878]
[1759161883138,7.42,210.72,210.68,9.53047878]
[1759161883437,4.2682,210.73,210.68,9.53047878]
[1759161883628,7.42,210.72,210.68,7.31]
[1759161883829,7.42,210.74,210.66,2.22047878]
[1759161884029,7.42,210.72,210.64,2.22047878]
[1759161884737,4.2685,210.71,210.64,6.49027878]
[1759161885128,7.42,210.72,210.64,6.49027878]
[1759161885737,7.42,210.72,210.64,4.2698]
[1759161886039,4.2688,210.7,210.64,2.22047878]
[1759161886241,7.42,210.7,210.64,2.22047878]
[1759161888342,7.42,210.7,210.63,11.58]
[1759161888939,7.42,210.7,210.63,7.31]
[1759161889542,4.269,210.69,210.63,7.31]
[1759161890343,7.42,210.7,210.63,7.31]
[1759161890546,4.2684,210.72,210.64,3.46826646]
[1759161890745,7.42,210.73,210.65,7.31]
[1759161891447,11.6881,210.73,210.67,4.2692]
[1759161891649,11.6881,210.73,210.67,11.5792]
[1759161893940,11.6881,210.73,210.68,4.269]
[1759161894146,11.6881,210.73,210.69,7.81]
[1759161894941,12.1784,210.72,210.66,4.2694]
[1759161895245,4.2684,210.72,210.66,12.0794]
[1759161898546,4.2684,210.72,210.67,4.2692]
[1759161898948,4.2684,210.72,210.68,7.81]
[1759161899148,4.2684,210.72,210.67,4.2692]
[1759161899349,4.2684,210.72,210.68,7.81]
[1759161899547,4.2684,210.72,210.67,4.2692]
[1759161899742,4.2684,210.72,210.68,7.81]
[1759161899944,7.91,210.73,210.68,12.079]
[1759161900145,7.91,210.76,210.64,7.81]
[1759161901650,4.2683,210.72,210.66,4.2694]
[1759161901850,4.2683,210.72,210.64,7.81]
[1759161901851,7.91,210.73,210.64,7.81]
[1759161902950,4.2686,210.71,210.65,4.2696]
[1759161903356,7.91,210.71,210.64,7.81]
[1759161904154,4.2688,210.7,210.64,12.0798]
[1759161904451,7.91,210.71,210.64,7.81]
[1759161905259,12.1785,210.71,210.65,4.2696]
[1759161905747,7.91,210.71,210.65,4.2696]
[1759161906546,4.2688,210.7,210.65,4.2696]
[1759161906751,7.91,210.69,210.65,12.0796]
[1759161907154,66.3961,210.72,210.59,5.32294854]
[1759161907349,7.91,210.71,210.6,7.81]
[1759161907655,4.2688,210.7,210.63,4.27]
[1759161908148,7.91,210.71,210.63,4.27]
[1759161908348,4.269,210.69,210.61,12.0804]
[1759161908554,7.91,210.69,210.61,7.81]
[1759161909550,4.2692,210.68,210.61,7.81]
[1759161910050,4.2694,210.67,210.61,7.81]
[1759161910854,4.2694,210.67,210.61,12.0804]
[1759161911050,12.1789,210.69,210.62,3.46826646]
[1759161911250,12.1789,210.69,210.63,7.81]
[1759161912448,12.1789,210.69,210.63,12.08]
[1759161912849,3.23258888,210.68,210.64,7.81]
[1759161913054,12.1789,210.69,210.63,12.08]
[1759161913257,3.23242896,210.68,210.64,7.81]
[1759161913455,12.1789,210.69,210.64,7.81]
[1759161913655,3.2323652,210.68,210.63,4.27]
[1759161913861,12.1789,210.69,210.63,4.27]
[1759161914048,3.23236316,210.68,210.64,7.54]
[1759161914252,12.1789,210.69,210.64,7.54]
[1759161914451,4.2692,210.68,210.62,7.54]
[1759161915352,4.2692,210.68,210.62,11.8102]
[1759161916061,5.2269327,210.77,210.65,7.54]
[1759161916257,10.82272133,210.76,210.65,7.54]
[1759161916454,7.59,210.74,210.65,7.54]
[1759161916648,3.23272133,210.73,210.65,7.54]
[1759161916852,3.23272133,210.72,210.65,7.54]
[1759161917056,3.23272133,210.71,210.68,7.54]
[1759161917356,4.2682,210.73,210.67,11.8092]
[1759161917552,3.23277648,210.72,210.68,7.54]
[1759161917759,3.23271509,210.71,210.68,7.54]
[1759161917958,7.59,210.72,210.68,7.54]
[1759161918155,3.23283738,210.71,210.67,4.2692]
[1759161918356,7.59,210.72,210.67,4.2692]
[1759161918556,3.23284113,210.71,210.68,7.54]
[1759161918863,7.59,210.72,210.68,7.54]
[1759161919154,3.23284113,210.71,210.68,7.54]
[1759161919359,7.59,210.72,210.68,7.54]
[1759161919549,3.23275928,210.71,210.68,7.54]
[1759161919747,7.59,210.72,210.66,7.54]
[1759161919952,3.23275928,210.71,210.65,4.2696]
[1759161920159,7.59,210.72,210.66,7.54]
[1759161920356,3.23293363,210.71,210.65,7.54]
[1759161920557,7.59,210.72,210.65,7.54]
[1759161920760,3.23336016,210.71,210.65,7.54]
[1759161921062,5.2269327,210.79,210.7,3.46826646]
[1759161921063,7.59,210.76,210.7,3.46826646]
[1759161921254,3.23371724,210.75,210.7,3.46826646]
[1759161921452,7.59,210.79,210.71,7.54]
[1759161921656,7.59,210.79,210.7,3.46826646]
[1759161921657,3.23422676,210.78,210.73,3.46826646]
[1759161921958,7.59,210.76,210.66,124.68]
[1759161922255,7.59,210.82,210.72,7.54]
[1759161922562,7.59,210.8,210.72,7.54]
[1759161922759,3.232697,210.79,210.72,7.54]
[1759161922961,3.232697,210.78,210.71,3.46826646]
[1759161923260,3.232697,210.77,210.71,3.46826646]
[1759161923456,7.59,210.8,210.72,7.54]
[1759161923660,3.23211881,210.79,210.72,7.54]
[1759161923858,3.23211881,210.78,210.72,7.54]
[1759161924056,318.9,210.84,210.74,3.46826646]
[1759161924057,8.04,210.84,210.74,3.46826646]
[1759161924362,3.23115686,210.83,210.75,7.52]
[1759161924666,3.23115686,210.82,210.76,4.2673]
[1759161924855,11.27115686,210.81,210.76,11.7873]
[1759161925056,11.27115686,210.8,210.77,7.52]
[1759161925261,8.04,210.8,210.77,7.52]
[1759161927866,8.04,210.85,210.77,11.7871]
[1759161928061,3.22576705,210.84,210.77,7.52]
[1759161928260,3.22576705,210.84,210.77,10.98826646]
[1759161929660,8.04,210.83,210.77,10.98826646]
[1759161930765,8.04,210.83,210.77,15.25536646]
[1759161931370,8.04,210.83,210.78,4.2669]
[1759161931668,8.04,210.84,210.79,7.52]
[1759161931866,4.2657,210.85,210.79,7.52]
[1759161932266,12.3057,210.85,210.79,7.52]
[1759161935164,8.04,210.85,210.79,11.7867]
[1759161937667,8.04,210.85,210.81,7.52]
[1759161938568,4.2648,210.89,210.81,11.7863]
[1759161938873,8.04,210.88,210.82,7.52]
[1759161939271,8.04,210.88,210.82,11.7861]
[1759161939570,8.04,210.88,210.77,7.52]